[Event "Titled Tuesday Blitz May 16 Late 2023"]
[White "Martin Barcelo, Carles"]
[Black "rikchessmx"]
[WhiteFideId "24561444"]
[WhiteElo "2089"]
[BlackElo "2233"]
[Result "1-0"]
[Round "10"]
[TimeControl "180+2"]
[Date "2023.05.16"]
[WhiteClock "0:00:06"]
[BlackClock "0:00:15"]

1. Nf3 {[%clk 0:02:59]}  Nf6 {[%clk 0:02:59]} 2. d4 {[%clk 0:02:59]}  e6 {[%clk 0:02:59]} 3. e3 {[%clk 0:02:59]}  b6 {[%clk 0:02:59]} 4. Bd3 {[%clk 0:02:55]}  Bb7 {[%clk 0:02:59]} 5. O-O {[%clk 0:02:55]}  c5 {[%clk 0:02:59]} 6. c4 {[%clk 0:02:55]}  d6 {[%clk 0:02:56]} 7. Nc3 {[%clk 0:02:54]}  Be7 {[%clk 0:02:55]} 8. d5 {[%clk 0:02:50]}  e5 {[%clk 0:02:54]} 9. e4 {[%clk 0:02:48]}  O-O {[%clk 0:02:53]} 10. Ne1 {[%clk 0:02:40]}  Nbd7 {[%clk 0:02:47]} 11. f3 {[%clk 0:02:39]}  Nh5 {[%clk 0:02:45]} 12. Be2 {[%clk 0:02:37]}  Bg5 {[%clk 0:02:45]} 13. Nd3 {[%clk 0:02:33]}  Bxc1 {[%clk 0:02:43]} 14. Qxc1 {[%clk 0:02:34]}  g6 {[%clk 0:02:40]} 15. Qh6 {[%clk 0:02:30]}  Ng7 {[%clk 0:02:36]} 16. g4 {[%clk 0:02:23]}  a6 {[%clk 0:02:32]} 17. a4 {[%clk 0:02:22]}  Rb8 {[%clk 0:02:27]} 18. Kh1 {[%clk 0:02:16]}  f6 {[%clk 0:02:18]} 19. Rg1 {[%clk 0:02:04]}  Qe7 {[%clk 0:02:17]} 20. Raf1 {[%clk 0:02:03]}  Rf7 {[%clk 0:02:15]} 21. Rg3 {[%clk 0:02:02]}  Nf8 {[%clk 0:02:13]} 22. Rh3 {[%clk 0:02:01]}  Ne8 {[%clk 0:02:12]} 23. Ne1 {[%clk 0:01:59]}  Bc8 {[%clk 0:02:09]} 24. Ng2 {[%clk 0:01:59]}  f5 {[%clk 0:02:05]} 25. gxf5 {[%clk 0:01:58]}  gxf5 {[%clk 0:02:04]} 26. Rg3+ {[%clk 0:01:57]}  Rg7 {[%clk 0:02:00]} 27. Rxg7+ {[%clk 0:01:55]}  Nxg7 {[%clk 0:01:59]} 28. Nh4 {[%clk 0:01:45]}  Qf7 {[%clk 0:01:51]} 29. Rg1 {[%clk 0:01:43]}  Rb7 {[%clk 0:01:49]} 30. Bf1 {[%clk 0:01:42]}  f4 {[%clk 0:01:27]} 31. Nd1 {[%clk 0:01:24]}  Kh8 {[%clk 0:01:16]} 32. Nf2 {[%clk 0:01:24]}  Qh5 {[%clk 0:01:16]} 33. Qxd6 {[%clk 0:00:58]}  Kg8 {[%clk 0:01:16]} 34. Qf6 {[%clk 0:00:39]}  Rf7 {[%clk 0:01:02]} 35. Qg5 {[%clk 0:00:38]}  Qxg5 {[%clk 0:01:01]} 36. Rxg5 {[%clk 0:00:39]}  h6 {[%clk 0:00:58]} 37. Rg1 {[%clk 0:00:37]}  Kh7 {[%clk 0:00:58]} 38. Bh3 {[%clk 0:00:37]}  Bxh3 {[%clk 0:00:51]} 39. Nxh3 {[%clk 0:00:38]}  b5 {[%clk 0:00:51]} 40. cxb5 {[%clk 0:00:23]}  axb5 {[%clk 0:00:50]} 41. a5 {[%clk 0:00:24]}  Ra7 {[%clk 0:00:50]} 42. Ra1 {[%clk 0:00:23]}  Nd7 {[%clk 0:00:49]} 43. Nf2 {[%clk 0:00:20]}  c4 {[%clk 0:00:41]} 44. Nd1 {[%clk 0:00:17]}  Nc5 {[%clk 0:00:41]} 45. Nc3 {[%clk 0:00:16]}  b4 {[%clk 0:00:38]} 46. Nb5 {[%clk 0:00:17]}  Ra8 {[%clk 0:00:34]} 47. Nc7 {[%clk 0:00:14]}  Ra7 {[%clk 0:00:33]} 48. Nb5 {[%clk 0:00:14]}  Ra6 {[%clk 0:00:29]} 49. d6 {[%clk 0:00:13]}  Nb3 {[%clk 0:00:28]} 50. d7 {[%clk 0:00:13]}  Ra8 {[%clk 0:00:26]} 51. Ra4 {[%clk 0:00:12]}  c3 {[%clk 0:00:25]} 52. bxc3 {[%clk 0:00:12]}  bxc3 {[%clk 0:00:24]} 53. Nxc3 {[%clk 0:00:13]}  Rd8 {[%clk 0:00:23]} 54. Nd5 {[%clk 0:00:12]}  h5 {[%clk 0:00:20]} 55. a6 {[%clk 0:00:11]}  Nc5 {[%clk 0:00:19]} 56. Ra5 {[%clk 0:00:09]}  Nxd7 {[%clk 0:00:19]} 57. a7 {[%clk 0:00:09]}  Ra8 {[%clk 0:00:19]} 58. Kg2 {[%clk 0:00:08]}  Ne6 {[%clk 0:00:16]} 59. Nf5 {[%clk 0:00:07]}  Nec5 {[%clk 0:00:15]} 60. Nc7 {[%clk 0:00:06]}  Nb6 {[%clk 0:00:13]} 61. Nxa8 {[%clk 0:00:06]}  Nxa8 {[%clk 0:00:14]} 62. Rxc5 {[%clk 0:00:06]}  Kg6 {[%clk 0:00:14]} 63. Rc6+ {[%clk 0:00:06]}  Kg5 {[%clk 0:00:15]} 64. h4# {[%clk 0:00:06]} 1-0


[Site "https://www.chess.com"]

[Event "Titled Tuesday Blitz May 16 Late 2023"]
[White "Xia, Brandon"]
[Black "Kovacevic, Radmila"]
[WhiteFideId "30921880"]
[BlackFideId "933171"]
[WhiteElo "1924"]
[BlackElo "2194"]
[Result "0-1"]
[Round "10"]
[TimeControl "180+2"]
[Date "2023.05.16"]
[WhiteClock "0:01:29"]
[BlackClock "0:01:36"]

1. Nf3 {[%clk 0:03:00]}  e5 {[%clk 0:03:00]} 2. Nxe5 {[%clk 0:02:55]}  Nc6 {[%clk 0:03:01]} 3. Nxc6 {[%clk 0:02:54]}  dxc6 {[%clk 0:03:02]} 4. b3 {[%clk 0:02:54]}  Qd4 {[%clk 0:03:00]} 5. Nc3 {[%clk 0:02:53]}  Nf6 {[%clk 0:02:57]} 6. e3 {[%clk 0:02:53]}  Qh4 {[%clk 0:02:55]} 7. Bb2 {[%clk 0:02:51]}  Bg4 {[%clk 0:02:49]} 8. Be2 {[%clk 0:02:49]}  Bd6 {[%clk 0:02:49]} 9. Bxg4 {[%clk 0:02:48]}  Nxg4 {[%clk 0:02:50]} 10. Qf3 {[%clk 0:02:43]}  O-O-O {[%clk 0:02:32]} 11. g3 {[%clk 0:02:42]}  Qh3 {[%clk 0:02:28]} 12. O-O-O {[%clk 0:02:37]}  Rhf8 {[%clk 0:02:13]} 13. Ne4 {[%clk 0:02:36]}  Ne5 {[%clk 0:02:04]} 14. Nxd6+ {[%clk 0:02:25]}  cxd6 {[%clk 0:02:02]} 15. Qf4 {[%clk 0:02:18]}  f6 {[%clk 0:01:57]} 16. d4 {[%clk 0:01:58]}  g5 {[%clk 0:01:56]} 17. Qe4 {[%clk 0:01:54]}  d5 {[%clk 0:01:54]} 18. dxe5 {[%clk 0:01:41]}  dxe4 {[%clk 0:01:53]} 19. exf6 {[%clk 0:01:40]}  Qf5 {[%clk 0:01:42]} 20. h4 {[%clk 0:01:37]}  Rxd1+ {[%clk 0:01:35]} 21. Kxd1 {[%clk 0:01:34]}  Qf3+ {[%clk 0:01:35]} 22. Kd2 {[%clk 0:01:29]}  Qxh1 {[%clk 0:01:36]} 0-1


[Site "https://www.chess.com"]

[Event "Titled Tuesday Blitz May 16 Late 2023"]
[White "Levar, Nenad"]
[Black "mjelcic"]
[WhiteFideId "14504430"]
[WhiteElo "2095"]
[BlackElo "2261"]
[Result "1-0"]
[Round "10"]
[TimeControl "180+2"]
[Date "2023.05.16"]
[WhiteClock "0:00:41"]
[BlackClock "0:00:06"]

1. d4 {[%clk 0:02:59]}  d5 {[%clk 0:03:00]} 2. Nf3 {[%clk 0:02:59]}  c6 {[%clk 0:03:01]} 3. c4 {[%clk 0:02:59]}  Nf6 {[%clk 0:03:01]} 4. Qb3 {[%clk 0:02:58]}  Qb6 {[%clk 0:03:01]} 5. c5 {[%clk 0:02:57]}  Qxb3 {[%clk 0:03:01]} 6. axb3 {[%clk 0:02:57]}  Bf5 {[%clk 0:02:56]} 7. b4 {[%clk 0:02:56]}  Nbd7 {[%clk 0:02:47]} 8. Nc3 {[%clk 0:02:56]}  e6 {[%clk 0:02:44]} 9. Bf4 {[%clk 0:02:54]}  Be7 {[%clk 0:02:44]} 10. e3 {[%clk 0:02:53]}  O-O {[%clk 0:02:44]} 11. h3 {[%clk 0:02:52]}  a6 {[%clk 0:02:44]} 12. Kd2 {[%clk 0:02:47]}  Ne4+ {[%clk 0:02:43]} 13. Nxe4 {[%clk 0:02:46]}  Bxe4 {[%clk 0:02:43]} 14. Bd3 {[%clk 0:02:46]}  Bxd3 {[%clk 0:02:40]} 15. Kxd3 {[%clk 0:02:45]}  f5 {[%clk 0:02:36]} 16. Ne5 {[%clk 0:02:41]}  Nxe5+ {[%clk 0:02:35]} 17. Bxe5 {[%clk 0:02:41]}  Rae8 {[%clk 0:02:32]} 18. Raf1 {[%clk 0:02:37]}  g5 {[%clk 0:02:32]} 19. f3 {[%clk 0:02:36]}  Bf6 {[%clk 0:02:30]} 20. Bxf6 {[%clk 0:02:34]}  Rxf6 {[%clk 0:02:31]} 21. e4 {[%clk 0:02:32]}  fxe4+ {[%clk 0:02:23]} 22. fxe4 {[%clk 0:02:31]}  Ref8 {[%clk 0:02:23]} 23. Rxf6 {[%clk 0:02:26]}  Rxf6 {[%clk 0:02:24]} 24. exd5 {[%clk 0:02:24]}  exd5 {[%clk 0:02:24]} 25. Re1 {[%clk 0:02:23]}  Kf7 {[%clk 0:02:22]} 26. Re5 {[%clk 0:02:20]}  h6 {[%clk 0:02:21]} 27. Ke3 {[%clk 0:02:15]}  Rf1 {[%clk 0:02:19]} 28. Kd3 {[%clk 0:02:06]}  Rd1+ {[%clk 0:02:10]} 29. Kc3 {[%clk 0:02:04]}  Kf6 {[%clk 0:02:07]} 30. Re2 {[%clk 0:02:00]}  Rg1 {[%clk 0:02:01]} 31. Rf2+ {[%clk 0:01:58]}  Kg6 {[%clk 0:02:00]} 32. Re2 {[%clk 0:01:57]}  Kh5 {[%clk 0:01:57]} 33. Re7 {[%clk 0:01:54]}  Rxg2 {[%clk 0:01:57]} 34. Rxb7 {[%clk 0:01:53]}  Rg3+ {[%clk 0:01:57]} 35. Kc2 {[%clk 0:01:52]}  Rxh3 {[%clk 0:01:57]} 36. Rc7 {[%clk 0:01:51]}  g4 {[%clk 0:01:57]} 37. Rxc6 {[%clk 0:01:51]}  g3 {[%clk 0:01:58]} 38. Rc8 {[%clk 0:01:50]}  Kh4 {[%clk 0:01:55]} 39. c6 {[%clk 0:01:45]}  g2 {[%clk 0:01:55]} 40. Rg8 {[%clk 0:01:44]}  Rg3 {[%clk 0:01:53]} 41. Rxg3 {[%clk 0:01:43]}  Kxg3 {[%clk 0:01:54]} 42. c7 {[%clk 0:01:43]}  g1=Q {[%clk 0:01:54]} 43. c8=Q {[%clk 0:01:42]}  Qf2+ {[%clk 0:01:53]} 44. Kd3 {[%clk 0:01:39]}  Qf3+ {[%clk 0:01:49]} 45. Kd2 {[%clk 0:01:38]}  Qf2+ {[%clk 0:01:48]} 46. Kd3 {[%clk 0:01:37]}  Qf1+ {[%clk 0:01:36]} 47. Ke3 {[%clk 0:01:35]}  Qe1+ {[%clk 0:01:27]} 48. Kd3 {[%clk 0:01:34]}  Qe4+ {[%clk 0:01:22]} 49. Kc3 {[%clk 0:01:31]}  h5 {[%clk 0:01:23]} 50. Qxa6 {[%clk 0:01:27]}  h4 {[%clk 0:01:21]} 51. b5 {[%clk 0:01:20]}  h3 {[%clk 0:01:21]} 52. b6 {[%clk 0:01:20]}  h2 {[%clk 0:01:13]} 53. b7 {[%clk 0:01:19]}  Qf3+ {[%clk 0:00:58]} 54. Qd3 {[%clk 0:01:18]}  h1=Q {[%clk 0:00:44]} 55. b8=Q+ {[%clk 0:01:16]}  Kf2 {[%clk 0:00:44]} 56. Qxf3+ {[%clk 0:01:10]}  Qxf3+ {[%clk 0:00:45]} 57. Kb4 {[%clk 0:01:08]}  Ke3 {[%clk 0:00:34]} 58. Kc5 {[%clk 0:01:05]}  Qg4 {[%clk 0:00:19]} 59. Qe5+ {[%clk 0:01:04]}  Kd2 {[%clk 0:00:18]} 60. Qxd5 {[%clk 0:01:03]}  Qc8+ {[%clk 0:00:19]} 61. Kb4 {[%clk 0:00:59]}  Qb8+ {[%clk 0:00:16]} 62. Qb5 {[%clk 0:00:58]}  Qd6+ {[%clk 0:00:15]} 63. Kc4 {[%clk 0:00:55]}  Qe6+ {[%clk 0:00:14]} 64. d5 {[%clk 0:00:54]}  Qe4+ {[%clk 0:00:09]} 65. Kc5 {[%clk 0:00:54]}  Qe3+ {[%clk 0:00:10]} 66. Kc6 {[%clk 0:00:53]}  Qe8+ {[%clk 0:00:10]} 67. Kc5 {[%clk 0:00:52]}  Qe3+ {[%clk 0:00:10]} 68. Kb4 {[%clk 0:00:51]}  Qd4+ {[%clk 0:00:10]} 69. Ka5 {[%clk 0:00:50]}  Qa7+ {[%clk 0:00:10]} 70. Kb4 {[%clk 0:00:48]}  Qd4+ {[%clk 0:00:10]} 71. Qc4 {[%clk 0:00:48]}  Qb6+ {[%clk 0:00:10]} 72. Ka4 {[%clk 0:00:43]}  Qa7+ {[%clk 0:00:09]} 73. Kb3 {[%clk 0:00:42]}  Qb6+ {[%clk 0:00:09]} 74. Qb4+ {[%clk 0:00:42]}  Kd3 {[%clk 0:00:06]} 75. Qxb6 {[%clk 0:00:41]} 1-0


[Site "https://www.chess.com"]

[Event "Titled Tuesday Blitz May 16 Late 2023"]
[White "KSho99"]
[Black "Barria Santos, Jose Guilherme"]
[BlackFideId "1939300"]
[WhiteElo "2153"]
[BlackElo "2266"]
[Result "0-1"]
[Round "10"]
[TimeControl "180+2"]
[Date "2023.05.16"]
[WhiteClock "0:00:02"]
[BlackClock "0:00:16"]

1. Nf3 {[%clk 0:03:00]}  Nf6 {[%clk 0:02:57]} 2. b3 {[%clk 0:03:00]}  g6 {[%clk 0:02:58]} 3. Bb2 {[%clk 0:03:00]}  Bg7 {[%clk 0:02:59]} 4. d4 {[%clk 0:03:01]}  O-O {[%clk 0:02:59]} 5. e3 {[%clk 0:03:00]}  d6 {[%clk 0:02:59]} 6. Be2 {[%clk 0:03:00]}  Nc6 {[%clk 0:02:54]} 7. O-O {[%clk 0:02:50]}  e5 {[%clk 0:02:47]} 8. dxe5 {[%clk 0:02:48]}  Ng4 {[%clk 0:02:46]} 9. c4 {[%clk 0:02:45]}  Ncxe5 {[%clk 0:02:32]} 10. Nxe5 {[%clk 0:02:43]}  Nxe5 {[%clk 0:02:33]} 11. Nc3 {[%clk 0:02:43]}  Bf5 {[%clk 0:02:12]} 12. e4 {[%clk 0:02:37]}  Bd7 {[%clk 0:02:10]} 13. f4 {[%clk 0:02:36]}  Nc6 {[%clk 0:02:10]} 14. Qd2 {[%clk 0:02:19]}  Re8 {[%clk 0:02:09]} 15. Bf3 {[%clk 0:02:12]}  Nd4 {[%clk 0:01:52]} 16. Rae1 {[%clk 0:02:00]}  c6 {[%clk 0:01:41]} 17. Bd1 {[%clk 0:01:55]}  Qb6 {[%clk 0:01:38]} 18. Kh1 {[%clk 0:01:54]}  a5 {[%clk 0:01:34]} 19. Re3 {[%clk 0:01:46]}  f5 {[%clk 0:01:09]} 20. Na4 {[%clk 0:01:12]}  Qa7 {[%clk 0:01:02]} 21. c5 {[%clk 0:00:55]}  dxc5 {[%clk 0:00:55]} 22. e5 {[%clk 0:00:55]}  b5 {[%clk 0:00:52]} 23. Nxc5 {[%clk 0:00:53]}  Qxc5 {[%clk 0:00:47]} 24. Bxd4 {[%clk 0:00:50]}  Qe7 {[%clk 0:00:48]} 25. Qc3 {[%clk 0:00:47]}  Rac8 {[%clk 0:00:35]} 26. Bc5 {[%clk 0:00:47]}  Qf7 {[%clk 0:00:34]} 27. Qxa5 {[%clk 0:00:44]}  Be6 {[%clk 0:00:34]} 28. Bf3 {[%clk 0:00:39]}  Bd5 {[%clk 0:00:31]} 29. Qc3 {[%clk 0:00:27]}  Rcd8 {[%clk 0:00:25]} 30. Bd6 {[%clk 0:00:24]}  Rxd6 {[%clk 0:00:23]} 31. exd6 {[%clk 0:00:08]}  Bxc3 {[%clk 0:00:22]} 32. Bxd5 {[%clk 0:00:06]}  cxd5 {[%clk 0:00:16]} 33. Rxc3 {[%clk 0:00:02]}  Qd7 {[%clk 0:00:16]} 0-1


[Site "https://www.chess.com"]

[Event "Titled Tuesday Blitz May 16 Late 2023"]
[White "Joubert, Dantelle"]
[Black "Vargas, Mauricio"]
[WhiteFideId "14310813"]
[BlackFideId "4404572"]
[WhiteElo "1507"]
[BlackElo "1986"]
[Result "1-0"]
[Round "10"]
[TimeControl "180+2"]
[Date "2023.05.16"]
[WhiteClock "0:00:29"]
[BlackClock "0:00:00"]

1. d4 {[%clk 0:03:00]}  Nf6 {[%clk 0:02:58]} 2. c4 {[%clk 0:02:59]}  d6 {[%clk 0:02:56]} 3. Nc3 {[%clk 0:02:58]}  g6 {[%clk 0:02:56]} 4. e4 {[%clk 0:02:48]}  Bg7 {[%clk 0:02:56]} 5. Nf3 {[%clk 0:02:46]}  Nbd7 {[%clk 0:02:51]} 6. e5 {[%clk 0:02:44]}  dxe5 {[%clk 0:02:50]} 7. dxe5 {[%clk 0:02:45]}  Ng8 {[%clk 0:02:46]} 8. e6 {[%clk 0:02:44]}  fxe6 {[%clk 0:02:45]} 9. Ng5 {[%clk 0:02:43]}  Ndf6 {[%clk 0:02:43]} 10. Qxd8+ {[%clk 0:02:42]}  Kxd8 {[%clk 0:02:42]} 11. Nf7+ {[%clk 0:02:43]}  Ke8 {[%clk 0:02:42]} 12. Nxh8 {[%clk 0:02:43]}  Bxh8 {[%clk 0:02:42]} 13. Be2 {[%clk 0:02:35]}  c6 {[%clk 0:02:30]} 14. Bf4 {[%clk 0:02:17]}  Bg7 {[%clk 0:02:28]} 15. O-O-O {[%clk 0:02:15]}  Nh6 {[%clk 0:02:27]} 16. h3 {[%clk 0:02:09]}  Nf5 {[%clk 0:02:26]} 17. g4 {[%clk 0:02:04]}  Nd6 {[%clk 0:02:22]} 18. Bxd6 {[%clk 0:02:02]}  exd6 {[%clk 0:02:21]} 19. Rxd6 {[%clk 0:02:02]}  Ke7 {[%clk 0:02:21]} 20. Rhd1 {[%clk 0:01:58]}  e5 {[%clk 0:02:09]} 21. a3 {[%clk 0:01:41]}  Be6 {[%clk 0:02:03]} 22. g5 {[%clk 0:01:26]}  Ne8 {[%clk 0:02:01]} 23. Rxe6+ {[%clk 0:01:20]}  Kxe6 {[%clk 0:01:59]} 24. Bg4+ {[%clk 0:01:20]}  Ke7 {[%clk 0:01:55]} 25. Rd7+ {[%clk 0:01:19]}  Kf8 {[%clk 0:01:52]} 26. Ne4 {[%clk 0:01:13]}  Rb8 {[%clk 0:01:43]} 27. Be6 {[%clk 0:01:10]}  h6 {[%clk 0:01:15]} 28. Rf7+ {[%clk 0:01:04]}  Kg8 {[%clk 0:01:11]} 29. Rxb7+ {[%clk 0:01:03]}  Kh7 {[%clk 0:01:09]} 30. Rxb8 {[%clk 0:01:00]}  Nc7 {[%clk 0:01:09]} 31. Bg8+ {[%clk 0:00:57]}  Kh8 {[%clk 0:01:06]} 32. h4 {[%clk 0:00:56]}  Na6 {[%clk 0:01:02]} 33. Rc8 {[%clk 0:00:55]}  hxg5 {[%clk 0:00:54]} 34. Nxg5 {[%clk 0:00:52]}  Bh6 {[%clk 0:00:53]} 35. Kc2 {[%clk 0:00:51]}  Kg7 {[%clk 0:00:53]} 36. b4 {[%clk 0:00:45]}  Kf6 {[%clk 0:00:45]} 37. Rxc6+ {[%clk 0:00:41]}  Kg7 {[%clk 0:00:45]} 38. Bd5 {[%clk 0:00:36]}  Nb8 {[%clk 0:00:42]} 39. Rc7+ {[%clk 0:00:36]}  Kf8 {[%clk 0:00:25]} 40. Rc8+ {[%clk 0:00:35]}  Ke7 {[%clk 0:00:24]} 41. Rxb8 {[%clk 0:00:35]}  e4 {[%clk 0:00:23]} 42. Rb7+ {[%clk 0:00:33]}  Kd6 {[%clk 0:00:20]} 43. Nxe4+ {[%clk 0:00:33]}  Ke5 {[%clk 0:00:19]} 44. Kd3 {[%clk 0:00:33]}  Bc1 {[%clk 0:00:18]} 45. Re7+ {[%clk 0:00:33]}  Kf4 {[%clk 0:00:17]} 46. Rf7+ {[%clk 0:00:32]}  Kg4 {[%clk 0:00:16]} 47. Rh7 {[%clk 0:00:31]}  Bxa3 {[%clk 0:00:14]} 48. b5 {[%clk 0:00:29]}  Bb4 {[%clk 0:00:12]} 49. c5 {[%clk 0:00:29]}  Be1 {[%clk 0:00:07]} 50. c6 {[%clk 0:00:29]}  Bb4 {[%clk 0:00:05]} 51. c7 {[%clk 0:00:29]}  Ba5 {[%clk 0:00:00]} 52. c8=Q+ {[%clk 0:00:29]} 1-0


[Site "https://www.chess.com"]

[Event "Titled Tuesday Blitz May 16 Late 2023"]
[White "Sanchez, Robert"]
[Black "Dmitriev, Sergey"]
[WhiteFideId "2034360"]
[BlackFideId "14101785"]
[WhiteElo "1853"]
[BlackElo "2132"]
[Result "0-1"]
[Round "10"]
[TimeControl "180+2"]
[Date "2023.05.16"]
[WhiteClock "0:02:44"]
[BlackClock "0:01:56"]

1. e4 {[%clk 0:03:00]}  d6 {[%clk 0:02:59]} 2. d4 {[%clk 0:02:58]}  g6 {[%clk 0:02:59]} 3. Nc3 {[%clk 0:02:59]}  Bg7 {[%clk 0:02:59]} 4. Be3 {[%clk 0:02:59]}  Nf6 {[%clk 0:02:58]} 5. f3 {[%clk 0:02:59]}  O-O {[%clk 0:02:58]} 6. Qd2 {[%clk 0:03:00]}  Nc6 {[%clk 0:02:58]} 7. O-O-O {[%clk 0:03:00]}  e5 {[%clk 0:02:55]} 8. d5 {[%clk 0:03:00]}  Ne7 {[%clk 0:02:56]} 9. g4 {[%clk 0:02:59]}  Nd7 {[%clk 0:02:55]} 10. h4 {[%clk 0:03:00]}  f5 {[%clk 0:02:55]} 11. gxf5 {[%clk 0:02:59]}  gxf5 {[%clk 0:02:55]} 12. Kb1 {[%clk 0:02:58]}  f4 {[%clk 0:02:54]} 13. Bf2 {[%clk 0:02:58]}  h5 {[%clk 0:02:52]} 14. Nh3 {[%clk 0:02:57]}  Nf6 {[%clk 0:02:37]} 15. Ng5 {[%clk 0:02:57]}  a6 {[%clk 0:02:24]} 16. Bh3 {[%clk 0:02:56]}  Bxh3 {[%clk 0:02:22]} 17. Rxh3 {[%clk 0:02:57]}  Qd7 {[%clk 0:02:18]} 18. Ne6 {[%clk 0:02:57]}  Rf7 {[%clk 0:02:16]} 19. Rg1 {[%clk 0:02:57]}  Nc8 {[%clk 0:02:06]} 20. Rh2 {[%clk 0:02:55]}  Kh8 {[%clk 0:02:02]} 21. Rhg2 {[%clk 0:02:54]}  Bh6 {[%clk 0:01:56]} 22. Rg6 {[%clk 0:02:44]}  Kh7 {[%clk 0:01:56]} 0-1


[Site "https://www.chess.com"]

[Event "Titled Tuesday Blitz May 16 Late 2023"]
[White "Bortnyk, Olexandr"]
[Black "Samsonkin, Artiom"]
[WhiteFideId "14120828"]
[BlackFideId "13503111"]
[WhiteElo "2734"]
[BlackElo "2524"]
[Result "1-0"]
[Round "11"]
[TimeControl "180+2"]
[Date "2023.05.16"]
[WhiteClock "0:00:10"]
[BlackClock "0:00:00"]

1. d4 {[%clk 0:03:00]}  Nf6 {[%clk 0:02:44]} 2. Nc3 {[%clk 0:03:00]}  e6 {[%clk 0:02:43]} 3. e4 {[%clk 0:02:59]}  d5 {[%clk 0:02:44]} 4. Bg5 {[%clk 0:02:58]}  dxe4 {[%clk 0:02:41]} 5. Nxe4 {[%clk 0:02:59]}  Bd7 {[%clk 0:02:41]} 6. Nf3 {[%clk 0:02:45]}  Bc6 {[%clk 0:02:38]} 7. Bd3 {[%clk 0:02:38]}  Nbd7 {[%clk 0:02:35]} 8. Ned2 {[%clk 0:02:25]}  h6 {[%clk 0:02:31]} 9. Bh4 {[%clk 0:02:24]}  Be7 {[%clk 0:02:30]} 10. c4 {[%clk 0:02:21]}  Bxf3 {[%clk 0:02:27]} 11. Nxf3 {[%clk 0:02:17]}  c5 {[%clk 0:02:27]} 12. O-O {[%clk 0:02:16]}  O-O {[%clk 0:02:27]} 13. Qe2 {[%clk 0:02:01]}  cxd4 {[%clk 0:02:19]} 14. Nxd4 {[%clk 0:02:02]}  Nc5 {[%clk 0:02:15]} 15. Rad1 {[%clk 0:02:01]}  Nxd3 {[%clk 0:02:01]} 16. Rxd3 {[%clk 0:02:02]}  Qc7 {[%clk 0:02:00]} 17. b3 {[%clk 0:01:58]}  Rad8 {[%clk 0:01:57]} 18. Rfd1 {[%clk 0:01:57]}  a6 {[%clk 0:01:52]} 19. a4 {[%clk 0:01:50]}  Qf4 {[%clk 0:01:38]} 20. Bg3 {[%clk 0:01:13]}  Qe4 {[%clk 0:01:34]} 21. Re3 {[%clk 0:01:10]}  Qg4 {[%clk 0:01:23]} 22. Qxg4 {[%clk 0:01:02]}  Nxg4 {[%clk 0:01:23]} 23. Red3 {[%clk 0:01:03]}  Nf6 {[%clk 0:01:12]} 24. f3 {[%clk 0:00:58]}  Nh5 {[%clk 0:01:06]} 25. Kf1 {[%clk 0:00:54]}  Nxg3+ {[%clk 0:01:05]} 26. hxg3 {[%clk 0:00:55]}  Bf6 {[%clk 0:01:02]} 27. Ke2 {[%clk 0:00:48]}  Rd7 {[%clk 0:01:00]} 28. Nc2 {[%clk 0:00:44]}  Rxd3 {[%clk 0:00:58]} 29. Rxd3 {[%clk 0:00:45]}  Rd8 {[%clk 0:00:58]} 30. Rxd8+ {[%clk 0:00:45]}  Bxd8 {[%clk 0:00:59]} 31. c5 {[%clk 0:00:43]}  Kf8 {[%clk 0:00:59]} 32. Kd3 {[%clk 0:00:43]}  h5 {[%clk 0:00:54]} 33. b4 {[%clk 0:00:38]}  Ke7 {[%clk 0:00:47]} 34. Ne3 {[%clk 0:00:34]}  Kd7 {[%clk 0:00:45]} 35. g4 {[%clk 0:00:33]}  hxg4 {[%clk 0:00:43]} 36. Nxg4 {[%clk 0:00:34]}  Bc7 {[%clk 0:00:42]} 37. Kc4 {[%clk 0:00:34]}  f5 {[%clk 0:00:39]} 38. Ne3 {[%clk 0:00:33]}  g5 {[%clk 0:00:37]} 39. g4 {[%clk 0:00:30]}  Bf4 {[%clk 0:00:33]} 40. Nc2 {[%clk 0:00:30]}  Be5 {[%clk 0:00:30]} 41. b5 {[%clk 0:00:29]}  axb5+ {[%clk 0:00:29]} 42. axb5 {[%clk 0:00:30]}  Bf4 {[%clk 0:00:20]} 43. Nb4 {[%clk 0:00:21]}  Bd2 {[%clk 0:00:16]} 44. Nd3 {[%clk 0:00:20]}  Be3 {[%clk 0:00:08]} 45. Ne5+ {[%clk 0:00:18]}  Kc7 {[%clk 0:00:07]} 46. b6+ {[%clk 0:00:18]}  Kc8 {[%clk 0:00:07]} 47. Kb5 {[%clk 0:00:18]}  Bd4 {[%clk 0:00:06]} 48. Nf7 {[%clk 0:00:17]}  fxg4 {[%clk 0:00:05]} 49. fxg4 {[%clk 0:00:17]}  e5 {[%clk 0:00:05]} 50. Nxg5 {[%clk 0:00:17]}  Kd7 {[%clk 0:00:04]} 51. Ne4 {[%clk 0:00:12]}  Be3 {[%clk 0:00:00]} 52. Kc4 {[%clk 0:00:10]} 1-0


[Site "https://www.chess.com"]

[Event "Titled Tuesday Blitz May 16 Late 2023"]
[White "Bluebaum, Matthias"]
[Black "Hakobyan, Aram"]
[WhiteFideId "24651516"]
[BlackFideId "13306677"]
[WhiteElo "2639"]
[BlackElo "2584"]
[Result "1/2-1/2"]
[Round "11"]
[TimeControl "180+2"]
[Date "2023.05.16"]
[WhiteClock "0:01:21"]
[BlackClock "0:00:49"]

1. d4 {[%clk 0:03:00]}  Nf6 {[%clk 0:02:57]} 2. c4 {[%clk 0:03:01]}  e6 {[%clk 0:02:56]} 3. Nc3 {[%clk 0:03:02]}  Bb4 {[%clk 0:02:55]} 4. e3 {[%clk 0:03:02]}  Bxc3+ {[%clk 0:02:55]} 5. bxc3 {[%clk 0:03:03]}  c5 {[%clk 0:02:55]} 6. Bd3 {[%clk 0:03:03]}  d6 {[%clk 0:02:54]} 7. Ne2 {[%clk 0:03:01]}  Nc6 {[%clk 0:02:54]} 8. e4 {[%clk 0:03:01]}  e5 {[%clk 0:02:54]} 9. O-O {[%clk 0:02:59]}  O-O {[%clk 0:02:51]} 10. f4 {[%clk 0:02:58]}  cxd4 {[%clk 0:02:42]} 11. cxd4 {[%clk 0:02:59]}  exd4 {[%clk 0:02:42]} 12. Bb2 {[%clk 0:02:42]}  Bg4 {[%clk 0:02:28]} 13. h3 {[%clk 0:02:31]}  Bxe2 {[%clk 0:02:28]} 14. Qxe2 {[%clk 0:02:32]}  Re8 {[%clk 0:02:28]} 15. Qf3 {[%clk 0:02:24]}  Nd7 {[%clk 0:02:27]} 16. Rad1 {[%clk 0:02:20]}  Nc5 {[%clk 0:02:27]} 17. Bb1 {[%clk 0:02:18]}  Rc8 {[%clk 0:02:24]} 18. Kh2 {[%clk 0:02:07]}  Qb6 {[%clk 0:02:10]} 19. Ba1 {[%clk 0:01:59]}  Nd7 {[%clk 0:01:55]} 20. Qf2 {[%clk 0:01:46]}  Nf8 {[%clk 0:01:48]} 21. Bxd4 {[%clk 0:01:36]}  Nxd4 {[%clk 0:01:47]} 22. Qxd4 {[%clk 0:01:37]}  Qxd4 {[%clk 0:01:47]} 23. Rxd4 {[%clk 0:01:38]}  Rc6 {[%clk 0:01:48]} 24. Rfd1 {[%clk 0:01:30]}  Ne6 {[%clk 0:01:32]} 25. Rxd6 {[%clk 0:01:30]}  Rxd6 {[%clk 0:01:33]} 26. Rxd6 {[%clk 0:01:30]}  Nxf4 {[%clk 0:01:34]} 27. Rd7 {[%clk 0:01:30]}  Rb8 {[%clk 0:01:26]} 28. e5 {[%clk 0:01:24]}  Ne6 {[%clk 0:01:25]} 29. Bf5 {[%clk 0:01:18]}  Nc5 {[%clk 0:01:20]} 30. Rc7 {[%clk 0:01:18]}  Na6 {[%clk 0:01:16]} 31. Rd7 {[%clk 0:01:19]}  Nc5 {[%clk 0:01:07]} 32. Rc7 {[%clk 0:01:19]}  Na6 {[%clk 0:01:08]} 33. Rd7 {[%clk 0:01:19]}  g6 {[%clk 0:00:56]} 34. Bg4 {[%clk 0:01:19]}  Nc5 {[%clk 0:00:51]} 35. Rc7 {[%clk 0:01:19]}  Na6 {[%clk 0:00:48]} 36. Rd7 {[%clk 0:01:20]}  Nc5 {[%clk 0:00:48]} 37. Rc7 {[%clk 0:01:20]}  Na6 {[%clk 0:00:49]} 38. Rd7 {[%clk 0:01:21]} 1/2-1/2


[Site "https://www.chess.com"]